bitfinex/quotes_SOLUSD_20240615
["timestamp","ask_amount","ask_price","bid_price","bid_amount"]
[1718490195166,8.1602,145.09,145.04,5.61]
[1718490195461,13.2605,145.09,145.04,5.61]
[1718490195765,8.1602,145.09,145.04,5.61]
[1718490195943,2.55,145.1,145.05,5.61]
[1718490196270,31.1089,145.11,145.05,5.61]
[1718490196438,31.1088,145.11,145.05,5.61]
[1718490196834,2.55,145.1,145.05,5.61]
[1718490198881,7.6499,145.1,145.05,5.61]
[1718490199042,10.1984,145.13,145.06,42.5209]
[1718490199250,2.5498,145.11,145.06,48.1309]
[1718490199545,31.1065,145.12,145.06,48.1309]
[1718490200075,7.6494,145.11,145.06,48.1309]
[1718490200279,5.61,145.1,145.06,42.5209]
[1718490204174,5.61,145.11,145.06,42.5209]
[1718490207471,5.61,145.12,145.06,48.1309]
[1718490210455,5.61,145.12,145.07,5.61]
[1718490212175,8.1596,145.12,145.06,48.1309]
[1718490212382,5.61,145.11,145.06,42.5209]
[1718490212772,5.61,145.1,145.06,42.5209]
[1718490219491,5.61,145.11,145.06,42.5209]
[1718490223065,7.16373236,145.14,145.06,42.5209]
[1718490223262,5.61,145.16,145.1,5.61]
[1718490223465,1.59416502,145.17,145.1,5.61]
[1718490223895,5.61,145.16,145.1,5.61]
[1718490224274,5.61,145.15,145.09,5.61]
[1718490225468,5.61,145.15,145.06,42.5209]
[1718490225672,5.61,145.15,145.09,5.61]
[1718490228899,5.61,145.15,145.07,0.34]
[1718490229103,5.61,145.15,145.09,5.61]
[1718490230604,22.9385,145.17,145.09,5.61]
[1718490230907,5.61,145.15,145.1,15.5095]
[1718490231103,5.61,145.15,145.11,0.96312734]
[1718490232219,8.1589,145.16,145.11,0.96312734]
[1718490232885,13.2567,145.16,145.11,0.96312734]
[1718490233486,14.21982734,145.16,145.1,12.08262734]
[1718490235686,21.86662734,145.16,145.1,12.08262734]
[1718490235909,14.21982734,145.16,145.1,12.08262734]
[1718490236416,5.61,145.16,145.1,12.08262734]
[1718490237089,9.12202734,145.16,145.1,12.08262734]
[1718490238421,6.57312734,145.16,145.1,12.08262734]
[1718490238723,9.12202734,145.16,145.1,12.08262734]
[1718490240012,6.57312734,145.16,145.1,12.08262734]
[1718490240317,9.12202734,145.16,145.1,12.08262734]
[1718490241924,5.61,145.15,145.1,12.08262734]
[1718490244021,0.96312734,145.14,145.1,6.47262734]
[1718490244202,5.61,145.14,145.1,6.47262734]
[1718490244404,6.57312734,145.14,145.1,6.47262734]
[1718490244915,6.57312734,145.14,145.08,5.61]
[1718490245123,6.57312734,145.14,145.09,20.0]
[1718490245306,5.61,145.13,145.09,20.0]
[1718490245830,5.61,145.13,145.08,20.0]
[1718490251767,15.4272,145.15,145.08,20.0]
[1718490251987,0.96312734,145.16,145.07,15.2228]
[1718490252161,5.61,145.16,145.11,5.61]
[1718490252685,5.61,145.16,145.1,5.61]
[1718490252973,5.61,145.15,145.1,5.61]
[1718490253271,5.61,145.15,145.09,5.61]
[1718490253484,5.61,145.15,145.1,20.0]
[1718490255183,5.61,145.13,145.1,20.0]
[1718490255347,5.61,145.13,145.08,20.0]
[1718490263377,0.96312734,145.17,145.09,5.61]
[1718490263582,5.61,145.16,145.1,25.61]
[1718490263886,5.61,145.16,145.11,0.95981809]
[1718490269199,5.61,145.15,145.11,0.95981809]
[1718490269994,21.5332,145.18,145.1,25.61]
[1718490270297,5.61,145.16,145.11,5.95]
[1718490270591,5.61,145.17,145.12,20.0]
[1718490271368,21.5332,145.18,145.12,20.0]
[1718490271577,5.61,145.17,145.12,20.0]
[1718490272887,5.61,145.16,145.12,20.0]
[1718490273599,5.61,145.15,145.11,20.0]
[1718490273795,5.61,145.15,145.1,20.0]
[1718490280919,5.61,145.14,145.1,20.0]
[1718490281090,5.61,145.14,145.04,100.0]
[1718490281420,5.61,145.13,145.07,20.8328]
[1718490281601,5.61,145.12,145.07,20.8328]
[1718490282985,5.61,145.12,145.08,20.0]
[1718490291928,5.61,145.15,145.09,5.61]
[1718490293319,5.61,145.15,145.1,20.0]
[1718490293700,5.61,145.14,145.1,20.0]
[1718490294030,5.61,145.14,145.07,0.34]
[1718490294031,5.61,145.14,145.08,5.61]
[1718490294328,5.61,145.14,145.09,20.0]
[1718490301958,0.96312734,145.17,145.09,25.61]
[1718490302254,5.61,145.15,145.09,25.61]
[1718490302626,0.96312734,145.17,145.09,25.61]
[1718490302965,21.5332,145.18,145.12,5.61]
[1718490303267,21.0372,145.18,145.13,25.61]
[1718490304053,3.51112734,145.21,145.13,25.61]
[1718490304257,5.61,145.19,145.13,25.61]
[1718490305362,5.61,145.18,145.13,25.61]
[1718490305539,5.61,145.18,145.13,20.0]
[1718490306541,5.61,145.17,145.13,20.0]
[1718490306742,5.61,145.17,145.12,20.17]
[1718490311464,5.61,145.18,145.12,25.78]
[1718490313055,0.96312734,145.2,145.13,5.78]
[1718490313258,5.61,145.19,145.13,5.78]
[1718490313462,5.61,145.19,145.13,0.17]
[1718490313664,5.61,145.19,145.13,5.78]
[1718490315581,5.61,145.18,145.13,0.17]
[1718490315759,5.61,145.18,145.13,20.17]
[1718490315962,5.61,145.17,145.13,20.0]
[1718490316485,5.61,145.17,145.12,20.17]
[1718490318871,5.61,145.17,145.11,5.95]
[1718490319172,5.61,145.17,145.12,20.0]
[1718490324060,5.61,145.17,145.11,5.95]
[1718490324263,5.61,145.17,145.12,20.0]
[1718490327582,5.61,145.15,145.12,20.0]
[1718490327890,5.61,145.14,145.09,20.0]
[1718490332662,5.61,145.14,145.06,5.52669666]
[1718490332663,5.61,145.14,145.08,5.61]
[1718490332859,5.61,145.14,145.09,20.0]
[1718490335212,5.61,145.11,145.04,15.8663]
[1718490335497,5.61,145.1,145.04,21.4763]
[1718490336516,5.61,145.1,145.05,5.61]
[1718490337985,5.61,145.1,145.06,20.0]
[1718490338977,5.61,145.1,145.05,25.61]
[1718490343534,5.61,145.1,145.05,20.0]
[1718490344538,5.61,145.11,145.05,25.61]
[1718490347761,5.61,145.1,145.05,20.0]
[1718490349443,0.96312734,145.13,145.06,5.61]
[1718490349630,5.61,145.12,145.07,5.61]
[1718490351646,6.57312734,145.13,145.07,5.61]
[1718490352435,5.61,145.12,145.07,5.61]
[1718490356155,6.57312734,145.13,145.07,5.61]
[1718490357628,0.96312734,145.13,145.07,5.61]
[1718490357834,6.57312734,145.13,145.07,5.61]
[1718490360664,5.61,145.15,145.09,5.61]
[1718490360837,5.61,145.15,145.08,20.17]
[1718490360838,0.96312734,145.16,145.1,26.46860345]
[1718490361037,6.57312734,145.16,145.1,26.46860345]
[1718490361255,5.61,145.16,145.11,0.85854428]
[1718490362970,0.96312734,145.17,145.11,5.61]
[1718490363180,5.61,145.16,145.11,5.61]
[1718490363689,6.57312734,145.17,145.11,5.61]
[1718490364775,5.61,145.16,145.11,5.61]
[1718490365644,5.61,145.15,145.1,25.61]
[1718490367769,23.90172734,145.17,145.1,20.0]
[1718490367976,5.61,145.14,145.1,20.0]
[1718490368974,5.61,145.14,145.09,20.0]
[1718490369480,5.61,145.14,145.09,25.61]
[1718490369659,5.61,145.15,145.09,25.61]
[1718490370074,5.61,145.15,145.1,5.61]
[1718490370949,0.96312734,145.17,145.11,5.61]
[1718490371280,0.96312734,145.17,145.12,5.61]
[1718490371281,6.57312734,145.17,145.12,5.61]
[1718490371584,5.61,145.17,145.13,20.0]
[1718490371945,0.96312734,145.16,145.13,20.0]
[1718490372147,5.61,145.15,145.12,20.0]
[1718490372343,5.61,145.15,145.1,20.0]
[1718490375467,5.61,145.15,145.1,25.61]
[1718490376158,3.51182734,145.18,145.1,25.61]
[1718490376358,5.61,145.16,145.1,25.61]
[1718490376765,0.96312734,145.15,145.1,25.61]
[1718490377176,5.61,145.16,145.1,25.61]
[1718490377385,5.61,145.15,145.1,25.61]
[1718490380759,5.61,145.15,145.1,20.0]
[1718490381896,0.96312734,145.17,145.11,5.61]
[1718490382109,5.61,145.17,145.12,5.61]
[1718490383660,6.5443,145.19,145.12,5.61]
[1718490383911,13.11742734,145.19,145.13,5.61]
[1718490384211,12.1543,145.19,145.13,5.61]
[1718490384558,6.5443,145.19,145.13,5.61]
[1718490384782,0.96312734,145.2,145.14,5.61]
[1718490384987,5.61,145.19,145.14,5.61]
[1718490385381,5.61,145.19,145.15,0.69260358]
[1718490385578,0.96312734,145.2,145.15,0.69260358]
[1718490385776,6.57312734,145.2,145.15,0.69260358]
[1718490387262,0.96312734,145.2,145.15,0.69260358]
[1718490387467,6.57312734,145.2,145.15,0.69260358]
[1718490387691,6.57312734,145.2,145.14,5.61]
[1718490387866,6.57312734,145.2,145.15,1.37759061]
[1718490389574,6.57312734,145.2,145.14,5.61]
[1718490392195,9.12132734,145.2,145.11,100.34]
[1718490392373,5.61,145.19,145.13,5.61]
[1718490392584,5.61,145.18,145.13,5.61]
[1718490396497,5.61,145.18,145.12,0.17]
[1718490396702,5.61,145.17,145.12,5.61]
[1718490396870,5.61,145.17,145.13,20.0]
[1718490397291,5.61,145.16,145.13,20.0]
[1718490397600,5.61,145.16,145.12,20.0]
[1718490398269,5.61,145.16,145.11,20.0]
[1718490398483,5.61,145.15,145.11,20.0]
[1718490399884,5.61,145.15,145.1,5.61]
[1718490400073,5.61,145.15,145.11,20.0]
[1718490401802,6.57312734,145.16,145.11,20.0]
[1718490405090,6.57312734,145.16,145.11,25.61]
[1718490405592,0.96312734,145.16,145.11,25.61]
[1718490407186,16.98842734,145.17,145.11,25.61]
[1718490407508,22.59842734,145.17,145.11,25.61]
[1718490407678,22.59842734,145.17,145.12,5.61]
[1718490407884,22.59842734,145.17,145.13,20.0]
[1718490409205,22.59842734,145.17,145.12,20.0]
[1718490410688,5.61,145.16,145.12,20.0]
[1718490410891,5.61,145.16,145.11,20.0]
[1718490413985,16.98842734,145.17,145.11,20.0]
[1718490414183,6.57312734,145.16,145.11,20.0]
[1718490415406,5.61,145.16,145.11,20.0]
[1718490415913,6.57312734,145.16,145.11,20.0]
[1718490416585,5.61,145.15,145.07,5.60699853]
[1718490416781,5.61,145.14,145.08,21.9143]
[1718490417715,0.96312734,145.16,145.07,0.68]
[1718490417936,5.61,145.13,145.07,6.29]
[1718490418433,5.61,145.13,145.07,5.61]
[1718490419225,5.61,145.13,145.08,20.0]
[1718490420916,5.61,145.14,145.08,25.61]
[1718490421100,0.96312734,145.16,145.08,25.61]
[1718490421306,5.61,145.14,145.08,25.61]
[1718490426806,0.96312734,145.13,145.08,25.61]
[1718490427624,6.57312734,145.13,145.08,20.0]
[1718490427816,5.61,145.13,145.08,20.0]
[1718490431612,0.96312734,145.14,145.08,20.0]
[1718490431812,5.61,145.13,145.08,20.0]
[1718490433433,21.2056,145.13,145.08,20.0]
[1718490434033,5.61,145.12,145.08,20.0]
[1718490435519,15.5956,145.13,145.08,25.61]
[1718490435914,21.2056,145.13,145.08,25.61]
[1718490438847,21.2056,145.13,145.08,20.0]
[1718490447929,15.5956,145.13,145.09,5.61]
[1718490450044,15.5956,145.13,145.1,20.0]
[1718490450343,16.5557,145.16,145.12,5.61]
[1718490450542,6.2672,145.18,145.13,20.0]
[1718490450748,6.2672,145.18,145.13,25.61]
[1718490450933,6.2672,145.18,145.13,20.0]
[1718490451240,12.84032734,145.18,145.12,5.61]
[1718490451414,6.57312734,145.17,145.13,20.0]
[1718490451722,5.61,145.16,145.13,20.0]
[1718490452051,5.61,145.16,145.12,20.0]
[1718490453652,5.61,145.16,145.11,20.34]
[1718490456054,5.61,145.16,145.11,20.0]
[1718490460147,5.61,145.16,145.11,25.61]
[1718490463055,5.61,145.17,145.11,25.61]
[1718490463958,5.61,145.17,145.12,5.61]
[1718490464160,5.61,145.17,145.13,20.0]
[1718490464546,12.84032734,145.18,145.13,20.0]
[1718490464742,11.8772,145.18,145.13,20.0]
[1718490464939,11.8772,145.18,145.13,25.61]
[1718490466626,6.2672,145.18,145.13,25.61]
[1718490466857,16.5557,145.19,145.14,5.61]
[1718490467056,16.5557,145.19,145.15,20.0]
[1718490470972,16.5557,145.19,145.15,25.61]
[1718490478291,16.5557,145.19,145.15,20.0]
[1718490478587,16.5557,145.19,145.14,20.0]
[1718490480970,16.5557,145.19,145.15,0.34]
[1718490484677,16.5557,145.19,145.14,20.0]
[1718490484861,22.1657,145.19,145.13,5.61]
[1718490485057,22.1657,145.19,145.14,20.0]
[1718490485688,5.61,145.18,145.14,20.0]
[1718490486163,22.1657,145.19,145.14,20.0]
[1718490487693,5.61,145.17,145.14,20.0]
[1718490487901,5.61,145.17,145.11,5.61]
[1718490488101,5.61,145.17,145.12,20.0]
[1718490488270,5.61,145.17,145.12,25.61]
[1718490492586,12.70222734,145.18,145.12,25.61]
[1718490493789,6.1291,145.18,145.13,5.61]
[1718490493975,6.1291,145.18,145.14,20.0]
[1718490494176,6.1291,145.18,145.14,25.61]
[1718490495081,6.1291,145.18,145.14,20.0]
[1718490495404,6.1291,145.18,145.15,1.14548407]
[1718490495770,6.1291,145.18,145.12,20.0]
[1718490495771,6.1291,145.18,145.13,0.17]
[1718490495971,6.1291,145.18,145.14,5.61]
[1718490496216,6.1291,145.18,145.15,20.0]
[1718490518817,11.7391,145.18,145.12,5.61]
[1718490519016,11.7391,145.18,145.13,20.0]
[1718490521817,11.7391,145.18,145.13,25.61]
[1718490528617,0.96312734,145.17,145.13,20.0]
[1718490528820,5.61,145.16,145.08,16.5752]
[1718490529003,5.61,145.14,145.05,6.0414]
[1718490529200,5.61,145.13,145.08,5.61]
[1718490529415,5.61,145.13,145.07,5.61]
[1718490529622,5.61,145.12,145.07,5.61]
[1718490531017,5.61,145.12,145.08,20.0]
[1718490533727,7.37482734,145.14,145.08,20.0]
[1718490534030,7.37482734,145.14,145.02,127.0064]
[1718490534031,5.61,145.11,145.05,5.61]
[1718490534251,5.61,145.11,145.06,20.0]
[1718490534729,20.7118,145.11,145.06,20.0]
[1718490534912,0.96312734,145.1,145.06,20.0]
[1718490537316,6.57312734,145.1,145.06,20.0]
[1718490537514,6.57312734,145.1,145.05,5.61]
[1718490537720,6.57312734,145.1,145.06,20.0]
[1718490538328,6.57312734,145.1,145.05,20.0]
[1718490541639,5.61,145.07,145.05,20.0]
[1718490541820,5.61,145.07,145.01,5.61]
[1718490542021,5.61,145.07,145.02,20.0]
[1718490544033,5.61,145.07,145.02,25.61]
[1718490544240,6.084,145.09,145.03,5.61]
[1718490544455,0.96312734,145.08,145.04,20.0]
[1718490544941,6.57312734,145.08,145.04,20.0]
[1718490546750,6.57312734,145.08,145.03,20.0]
[1718490548146,6.57312734,145.08,145.03,25.61]
[1718490551050,0.96312734,145.08,145.03,25.61]
[1718490551247,6.57312734,145.08,145.03,25.61]
[1718490552047,0.96312734,145.08,145.03,25.61]
[1718490555751,6.084,145.09,145.03,25.61]
[1718490555964,15.1018,145.11,145.06,5.61]
[1718490556451,20.7118,145.11,145.05,5.61]
[1718490556629,0.96312734,145.1,145.06,20.0]
[1718490556961,5.61,145.09,145.04,5.61]
[1718490557165,0.96312734,145.1,145.05,20.0]
[1718490557166,6.57312734,145.1,145.05,20.0]
[1718490557372,6.57312734,145.1,145.05,25.61]
[1718490561816,6.57312734,145.1,145.05,20.0]
[1718490566379,0.96312734,145.1,145.05,20.0]
[1718490566685,0.96312734,145.1,145.02,0.51]
[1718490566686,5.61,145.07,145.02,20.0]
[1718490567682,5.61,145.07,145.01,5.61]
[1718490568809,0.96312734,145.08,145.02,5.61]
[1718490568980,6.57312734,145.08,145.03,20.0]
[1718490570309,12.62192734,145.09,145.03,25.61]
[1718490574781,12.62192734,145.09,145.04,45.0]
[1718490583909,6.0488,145.09,145.04,50.61]
[1718490584224,6.0488,145.09,145.05,5.61]
[1718490584387,6.0488,145.09,145.06,45.0]
[1718490587519,6.57312734,145.1,145.06,45.0]
[1718490587719,16.06492734,145.11,145.06,45.0]
[1718490588017,21.67492734,145.11,145.06,45.0]
[1718490590414,0.96312734,145.1,145.06,45.0]
[1718490590613,6.57312734,145.1,145.06,45.0]
[1718490591825,0.96312734,145.1,145.06,45.0]
[1718490592192,6.57312734,145.1,145.06,45.0]
[1718490592621,0.96312734,145.1,145.06,45.0]
[1718490592998,21.67492734,145.11,145.06,45.0]
[1718490593198,16.06492734,145.11,145.06,45.0]
[1718490593402,21.67492734,145.11,145.06,45.0]
[1718490595113,0.96312734,145.1,145.06,45.0]
[1718490604220,5.61,145.09,145.06,45.0]
[1718490604405,0.96312734,145.08,145.03,25.61]
[1718490604927,0.96312734,145.08,145.04,0.57023937]
[1718490605820,0.96312734,145.08,145.04,45.57023937]
[1718490606018,0.96312734,145.08,145.05,20.0]
[1718490606323,0.96312734,145.08,145.06,45.0]
[1718490606732,6.57312734,145.08,145.06,45.0]
[1718490606910,5.61,145.08,145.06,45.0]
[1718490607108,6.57312734,145.07,145.06,45.0]
[1718490607349,5.61,145.07,145.0,5.61]
[1718490607522,6.57312734,145.06,145.0,5.61]
[1718490607716,5.61,145.06,145.0,5.61]
[1718490607923,5.61,145.06,144.98,21.5214]
[1718490608142,5.61,145.06,145.0,5.61]
[1718490609355,0.96312734,145.05,144.99,5.61]
[1718490609541,0.96312734,145.05,145.0,20.0]
[1718490609542,5.61,145.04,145.0,20.0]
[1718490610939,5.61,145.04,145.01,45.0]
[1718490611443,0.96312734,145.03,145.0,20.0]
[1718490611646,6.57312734,145.03,144.99,20.0]
[1718490611950,5.61,145.03,144.99,20.0]
[1718490612251,5.61,145.03,144.98,20.0]
[1718490613052,5.61,145.03,144.99,45.0]
[1718490613229,5.61,145.03,145.0,20.0]
[1718490613429,5.61,145.03,145.01,45.0]
[1718490613826,6.57312734,145.05,145.01,45.0]
[1718490614646,0.96312734,145.05,145.01,50.61]
[1718490614851,12.75752734,145.06,145.01,50.61]
[1718490615843,7.14752734,145.06,145.01,50.61]
[1718490616048,12.75752734,145.06,145.01,50.61]
[1718490618627,5.61,145.05,145.01,45.0]
[1718490618828,0.96312734,145.04,145.01,45.0]
[1718490619029,0.96312734,145.04,145.0,20.0]
[1718490619030,5.61,145.03,145.0,20.0]
[1718490619324,6.57312734,145.02,144.95,25.2391]
[1718490619553,6.57312734,145.02,144.96,5.61]
[1718490620549,6.57312734,145.02,144.97,20.0]
[1718490621456,6.57312734,145.02,144.98,45.0]
[1718490634074,0.96312734,145.04,144.99,25.61]
[1718490634255,0.96312734,145.04,145.0,45.0]
[1718490637384,0.96312734,145.05,145.0,50.61]
[1718490637879,28.45872734,145.06,145.0,50.61]
[1718490638090,28.45872734,145.06,145.01,20.0]
[1718490638291,28.45872734,145.06,145.02,45.0]
[1718490639587,5.61,145.05,145.02,45.0]
[1718490640181,28.45872734,145.06,145.02,45.0]
[1718490649763,2.5504,145.08,145.03,5.61]
[1718490649764,0.96312734,145.08,145.03,5.61]
[1718490649966,0.96312734,145.08,145.04,65.0]
[1718490660192,0.96312734,145.09,145.04,65.0]
[1718490660363,0.96312734,145.09,145.04,70.61]
[1718490660565,21.73232734,145.1,145.05,5.61]
[1718490661070,21.73232734,145.1,145.06,45.0]
[1718490664103,0.96312734,145.11,145.07,20.0]
[1718490664307,0.96312734,145.11,145.08,45.0]
[1718490665598,6.57312734,145.12,145.08,45.0]
[1718490666691,0.96312734,145.12,145.08,45.0]
[1718490667471,0.96312734,145.13,145.08,50.61]
[1718490671177,25.4901,145.16,145.08,50.61]
[1718490671381,0.96312734,145.15,145.09,25.61]
[1718490671602,6.57312734,145.15,145.1,45.0]
[1718490674505,0.96312734,145.15,145.11,20.0]
[1718490674679,0.96312734,145.15,145.12,45.0]
[1718490679207,6.57312734,145.16,145.12,45.0]
[1718490680416,15.3617,145.21,145.12,50.61]
[1718490680592,5.61,145.19,145.13,25.61]
[1718490680781,0.96312734,145.18,145.14,45.0]
[1718490681613,6.57312734,145.18,145.14,45.0]
[1718490681825,5.61,145.18,145.14,45.0]
[1718490685295,0.96312734,145.2,145.14,45.0]
[1718490685502,5.61,145.18,145.14,45.0]
[1718490685701,5.61,145.19,145.14,45.0]
[1718490685900,0.96312734,145.18,145.14,45.0]
[1718490686487,6.57312734,145.19,145.14,45.0]
[1718490686683,6.57312734,145.19,145.14,50.61]
[1718490687508,5.61,145.19,145.14,50.61]
[1718490689615,3.51132734,145.2,145.14,50.61]
[1718490689911,5.61,145.19,145.14,50.61]
[1718490692010,0.96312734,145.18,145.14,45.0]
[1718490692915,8.60892734,145.18,145.13,25.61]
[1718490693092,5.61,145.15,145.13,20.0]
[1718490693286,5.61,145.15,145.09,42.0488]
[1718490693494,25.4825,145.2,145.12,5.61]
[1718490693692,5.61,145.18,145.13,20.0]
[1718490694593,5.61,145.18,145.14,45.0]
[1718490695208,0.96312734,145.2,145.15,22.4531]
[1718490695518,5.61,145.22,145.16,70.61]
[1718490695720,0.96312734,145.21,145.16,70.61]
[1718490696597,6.57312734,145.21,145.16,70.61]
[1718490696938,0.96312734,145.2,145.16,65.0]
[1718490698315,6.57312734,145.21,145.16,65.0]
[1718490698509,6.57312734,145.21,145.16,70.61]
[1718490699442,5.61,145.21,145.16,70.61]
[1718490705930,5.61,145.19,145.16,65.0]
[1718490707543,5.61,145.2,145.16,65.0]
[1718490707944,6.57312734,145.21,145.16,65.0]
[1718490708244,5.61,145.21,145.16,70.61]
[1718490712438,5.61,145.22,145.16,65.0]
[1718490712746,6.57312734,145.21,145.16,65.0]
[1718490713636,5.61,145.21,145.16,65.0]
[1718490714544,0.8500918,145.23,145.2,5.61]
[1718490714841,0.8500918,145.23,145.21,20.0]
[1718490716332,0.8500918,145.23,145.2,20.0]
[1718490716537,0.8500918,145.23,145.2,25.61]
[1718490718666,0.8500918,145.23,145.21,1.36876211]
[1718490721252,0.8500918,145.23,145.19,16.5893]
[1718490721444,7.42321914,145.23,145.15,22.6036]
[1718490721630,7.42321914,145.23,145.17,5.61]
[1718490722033,1.81321914,145.23,145.17,5.61]
[1718490722255,6.4600918,145.23,145.17,5.61]
[1718490722553,6.4600918,145.23,145.18,20.0]
[1718490723167,0.8500918,145.23,145.18,25.61]
[1718490723469,0.8500918,145.23,145.19,5.61]
[1718490723770,0.8500918,145.23,145.2,20.0]
[1718490725045,0.8500918,145.23,145.2,21.37718127]
[1718490725438,0.8500918,145.23,145.2,20.0]
[1718490725661,1.81321914,145.23,145.19,20.0]
[1718490726839,7.42321914,145.23,145.19,20.0]
[1718490727067,7.42321914,145.23,145.18,20.0]
[1718490732573,5.61,145.22,145.18,20.0]
[1718490732741,5.61,145.2,145.15,22.1993]
[1718490733064,0.8500918,145.23,145.16,5.61]
[1718490733366,0.8500918,145.23,145.15,16.5893]
[1718490733367,0.8500918,145.23,145.18,5.61]
[1718490733861,1.81321914,145.23,145.16,0.17]
[1718490734066,1.81321914,145.23,145.18,5.61]
[1718490734267,1.81321914,145.23,145.19,20.0]
[1718490735073,7.42321914,145.23,145.19,20.0]
[1718490735272,7.42321914,145.23,145.18,20.0]
[1718490735765,5.61,145.22,145.18,20.0]
[1718490735971,0.96312734,145.21,145.16,25.61]
[1718490736161,5.61,145.21,145.16,25.61]
[1718490736465,5.61,145.2,145.16,20.0]
[1718490737869,5.61,145.21,145.16,20.0]
[1718490738760,0.96312734,145.2,145.16,20.0]
[1718490738950,6.57312734,145.2,145.16,20.0]
[1718490739153,5.61,145.2,145.16,20.0]
[1718490743675,5.61,145.21,145.16,20.0]
[1718490743860,0.96312734,145.2,145.16,20.0]
[1718490748185,0.96312734,145.2,145.15,5.61]
[1718490748379,0.96312734,145.2,145.16,20.0]
[1718490748559,0.96312734,145.2,145.15,5.61]
[1718490748761,0.96312734,145.22,145.16,20.0]
[1718490755809,0.96312734,145.22,145.15,5.61]
[1718490756101,0.96312734,145.22,145.16,20.0]
[1718490757303,0.96312734,145.22,145.15,5.61]
[1718490757595,0.96312734,145.22,145.16,20.0]
[1718490759907,3.51092734,145.22,145.16,20.0]
[1718490760302,0.96312734,145.22,145.16,20.0]
[1718490768699,3.51092734,145.22,145.16,20.0]
[1718490768899,8.60692734,145.22,145.16,20.0]
[1718490769123,8.60692734,145.22,145.17,20.0]
[1718490769291,3.51102734,145.22,145.17,20.0]
[1718490770019,3.51102734,145.22,145.16,20.0]
[1718490770322,0.96312734,145.22,145.16,20.0]
[1718490772422,6.5168,145.21,145.16,20.0]
[1718490772630,0.96312734,145.2,145.15,20.0]
[1718490777618,6.57312734,145.2,145.15,20.0]
[1718490780711,0.96312734,145.2,145.15,25.61]
[1718490781718,6.5168,145.21,145.16,5.61]
[1718490782048,0.96312734,145.22,145.17,25.61]
[1718490783312,6.57312734,145.22,145.17,25.61]
[1718490784527,6.57312734,145.22,145.17,20.0]
[1718490787824,0.96312734,145.22,145.14,20.17]
[1718490788026,5.61,145.21,145.15,5.61]
[1718490788212,5.61,145.21,145.15,25.61]
[1718490788613,0.96312734,145.2,145.16,20.0]
[1718490789215,5.61,145.19,145.14,5.61]
[1718490789411,5.61,145.19,145.15,20.0]
[1718490791659,0.96312734,145.18,145.15,20.0]
[1718490791810,0.96312734,145.18,145.13,5.61]
[1718490792156,0.96312734,145.18,145.14,20.0]
[1718490792825,5.61,145.19,145.14,20.0]